Cogmind - Beta 9.2 @@@ ROGUE MODE // 2019.12.11 @ 19:02:40 Player: Fleshy Vegetable Bird Result: Destroyed by S-10 Pest with Light Assault Rifle Performance ------------- Evolutions (0) 0 Regions Visited (2) 400 Robots Destroyed (21) 105 Value Destroyed (405) 405 Prototype IDs (0) 0 Alien Tech Used (0) 0 Bonus (67) 67 TOTAL SCORE: 977 Bonus ------- Follower Combat Kills 67 Cogmind --------- Core Integrity 0/250 Matter 300/300 Energy 100/100 System Corruption 0% Temperature Cool (0) Movement Rolling (90) Ox1 Location -10/Mines Parts ------- > --- POWER (1) -------- (None) > --- PROPULSION (2) --- Wheel Wheel > --- UTILITY (2) ------ Large Storage Unit Large Storage Unit > --- WEAPON (2) ------- Light Assault Rifle Light Assault Rifle > --- INVENTORY (16) --- Light Ion Engine Light Nuclear Core Light Treads Light Treads Medium Storage Unit Hacking Suite Mining Laser Peak State ------------ > --- POWER ------------ Light Ion Engine > --- PROPULSION ------- Wheel Wheel > --- UTILITY ---------- Small Storage Unit Small Storage Unit > --- WEAPON ----------- Small Laser Light Assault Rifle > --- INVENTORY -------- Light Treads Light Treads Wheel Wheel Wheel Hacking Suite Assault Rifle Mining Laser [Rating: 8] Favorites ----------- Power Ion Engine Engine Ion Engine Propulsion Wheel Wheel Wheel Utility Large Storage Unit Storage Large Storage Unit Weapon Assault Rifle Energy Gun Small Laser Ballistic Gun Assault Rifle Build | -11 -10 -10 ------- Run | Scr Mat Min Slots Evolved . | . . . Power . | . . . Propulsion . | . . . Utility . | . . . Weapon . | . . . Parts Attached 19 | 6 5 8 Power 2 | 1 . 1 Engine 2 | 1 . 1 Core . | . . . Reactor . | . . . Propulsion 6 | 2 . 4 Treads . | . . . Leg . | . . . Wheel 6 | 2 . 4 Hover . | . . . Flight . | . . . Utility 4 | 2 2 . Device . | . . . Storage 4 | 2 2 . Processor . | . . . Hackware . | . . . Protection . | . . . Artifact . | . . . Weapon 7 | 1 3 3 Energy Gun 3 | 1 1 1 Energy Cannon . | . . . Ballistic Gun 4 | . 2 2 Ballistic Cannon . | . . . Launcher . | . . . Special Weapon . | . . . Impact Weapon . | . . . Slashing Weapon . | . . . Piercing Weapon . | . . . Special Melee Weapon . | . . . Unidentified Prototypes . | . . . Parts Lost 9 | . 3 6 Power 2 | . . 2 Propulsion 2 | . . 2 Utility . | . . . Weapon 5 | . 3 2 Highest Loss Streak 4 | . 1 4 Average Slot Usage (%) 89 | . 92 87 Engine 13 | . 14 13 Wheel 27 | . 28 27 Storage 28 | . 28 28 Energy Gun 2 | . 7 . Ballistic Gun 16 | . 13 17 Naked Turns . | . . . Heaviest Build 40 | 12 38 40 Greatest Support 20 | 20 20 20 Greatest Overweight (x) 13 | 2 1 13 Average Overweight (x) . | . . 1 Largest Inventory Capacity 16 | 8 16 16 Average Capacity 14 | 6 14 16 Most Carried 10 | 8 10 10 Average Carried 7 | 4 8 7 Final Capacity 16 | 8 16 16 Final Carried 9 | 8 9 7 Class Distribution -------------------- 86% | Mutant 13% | Scavenger-Mutant Dominant Class ---------------- Mutant | -10/Materials Mutant | -10/Mines Resources | -11 -10 -10 ----------- Run | Scr Mat Min Matter Collected 526 | 260 115 151 Remotely . | . . . Salvage Created 699 | 162 320 217 Parts 54 | 10 25 19 Haulers Intercepted 1 | . 1 . Recyclers Shooed 1 | . . 1 Parts Field Recycled . | . . . Retrieved Matter . | . . . Parts Self-Destructed . | . . . Prevented . | . . . Kills | -11 -10 -10 ------- Run | Scr Mat Min Combat Hostiles Destroyed 11 | . 6 5 Guns 11 | . 6 5 Classes Destroyed 6 | 2 3 1 Tunneler 4 | 3 . 1 Hauler 1 | . 1 . Recycler 2 | 1 . 1 Operator 3 | . 3 . Swarmer 3 | . . 3 Grunt 8 | . 6 2 Best Kill Streak 4 | 2 3 4 Combat Bots Only 2 | . 2 2 Max Kills in Single Turn 1 | 1 1 1 Gunslinging . | . . . Exploded . | . . . Melee . | . . . Uniques/NPCs Destroyed . | . . . Combat | -11 -10 -10 -------- Run | Scr Mat Min Damage Taken 923 | . 369 554 Core 252 | . 91 161 Absorbed by Shields . | . . . Core Remaining (%) 100 | 100 . . Volleys Fired 105 | 22 49 34 Largest 2 | 1 2 2 Hottest 60 | 40 60 60 Shots Fired 132 | 22 70 40 Gun 132 | 22 70 40 Cannon . | . . . Launcher . | . . . Special . | . . . Kinetic 83 | . 45 38 Thermal 49 | 22 25 2 Explosive . | . . . Electromagnetic . | . . . Robot Hit Streak 9 | 4 9 6 Robot Miss Streak 4 | 3 3 4 Penetration Max . | . . . Secondary Targets 1 | . 1 . Max Gunslinging Chain 1 | . 1 . Shots Hit Robots 76 | 13 40 23 Core Hits 37 | 5 21 11 Critical Hits . | . . . Critical Kills . | . . . Critical Parts Destroyed . | . . . Melee Attacks . | . . . Impact . | . . . Slashing . | . . . Piercing . | . . . Sneak Attacks . | . . . Combat Hostiles . | . . . Follow-up Attacks . | . . . Damage Inflicted 986 | 153 502 331 Guns 986 | 153 502 331 Cannons . | . . . Explosions . | . . . Melee . | . . . Ramming . | . . . Kinetic 621 | . 312 309 Thermal 365 | 153 190 22 Explosive . | . . . Electromagnetic . | . . . Impact . | . . . Slashing . | . . . Piercing . | . . . Highest Corruption . | . . . Average Corruption . | . . . Corruption Purged . | . . . Overload Shots . | . . . Overflow Damage . | . . . Projectiles . | . . . Explosions . | . . . Melee . | . . . Knockbacks . | . . . Impact . | . . . Kinetic . | . . . Secondary . | . . . Self-Inflicted Damage . | . . . Shots . | . . . Rammed . | . . . Targets Rammed . | . . . Kicked . | . . . Crushed . | . . . Highest Temperature 88 | . 88 45 Average Temperature 31 | . 34 23 Received Heat Transfer 360 | . 198 162 Siege Activations . | . . . Robots Corrupted . | . . . Combat Hostiles . | . . . Parts Fried . | . . . Impact Corruptions . | . . . Robots Melted . | . . . Combat Hostiles . | . . . Parts Melted 1 | . 1 . Heat Transferred 825 | 350 425 50 Parts Sabotaged . | . . . Parts Stolen . | . . . Parts Stripped . | . . . Power Chain Reactions . | . . . Missiles Intercepted . | . . . Alert | -11 -10 -10 ------- Run | Scr Mat Min Peak Influence 158 | 20 158 85 Average Influence 65 | 7 74 74 Maximum Alert Level . | . . . Low Security (%) 100 | 100 100 100 Level 1 . | . . . Level 2 . | . . . Level 3 . | . . . Level 4 . | . . . Level 5 . | . . . High Security . | . . . Max Security . | . . . Squads Dispatched 5 | . 5 . Investigation . | . . . Extermination . | . . . Reinforcement 5 | . 5 . Assault . | . . . Garrison . | . . . Intercept . | . . . Construction Impeded . | . . . Haulers Reinforced . | . . . Stealth | -11 -10 -10 --------- Run | Scr Mat Min Distress Signals . | . . . Communications Jammed . | . . . Distress Signals . | . . . Times Spotted 29 | . 19 10 Peak Tracking Total 5 | . 5 3 Tactical Retreats 2 | . 2 . Traps | -11 -10 -10 ------- Run | Scr Mat Min Traps Triggered . | . . . Indirectly . | . . . Trap Hack Attempts . | . . . Triggered . | . . . Disarmed . | . . . Reprogrammed . | . . . Reused . | . . . Traps Extracted . | . . . Installed . | . . . Triggered . | . . . Machines | -11 -10 -10 ---------- Run | Scr Mat Min Machines Disabled . | . . . Max in Single Turn . | . . . Machines Sabotaged . | . . . Garrisons Compromised . | . . . Overloaded Fab Kills . | . . . Fab Network Shutdowns . | . . . Hacking | -11 -10 -10 --------- Run | Scr Mat Min Machines Accessed 1 | . 1 . Terminals 1 | . 1 . Fabricators . | . . . Repair Stations . | . . . Recycling Units . | . . . Scanalyzers . | . . . Garrison Access . | . . . Total Hacks 3 | . 3 . Successful 2 | . 2 . Failed 1 | . 1 . Catastrophic . | . . . Database Lockouts . | . . . Manual 2 | . 2 . Terminals 3 | . 3 . Fabricators . | . . . Repair Stations . | . . . Recycling Units . | . . . Scanalyzers . | . . . Garrison Access . | . . . Terminal Hacks 1 | . 1 . Record 1 | . 1 . Fabricator Hacks . | . . . Repair Station Hacks . | . . . Recycling Unit Hacks . | . . . Scanalyzer . | . . . Garrison Access Hacks . | . . . Unauthorized Hacks 3 | . 3 . Terminals 1 | . 1 . Track 1 | . 1 . Fabricators . | . . . Repair Stations . | . . . Recycling Units . | . . . Scanalyzers . | . . . Garrison Access . | . . . Data Cores Recovered . | . . . Used . | . . . Hacking Detections 1 | . 1 . Full Trace Events . | . . . Feedback Events . | . . . Feedback Blocked . | . . . Robot Schematics Acquired . | . . . Robots Built . | . . . Matter . | . . . Time . | . . . Total Robot Build Rating . | . . . Part Schematics Acquired . | . . . Parts Built . | . . . Matter . | . . . Time . | . . . Total Part Build Rating . | . . . Parts Repaired . | . . . Time . | . . . Parts Recycled . | . . . Recycled Matter . | . . . Retrieved Matter . | . . . Retrieved Components . | . . . Parts Scanalyzed . | . . . Part Schematics Acquired . | . . . Parts Damaged . | . . . Bothacking | -11 -10 -10 ------------ Run | Scr Mat Min Used RIF Installer . | . . . Robots Hacked . | . . . Non-combat . | . . . Combat . | . . . Robot Hacks Applied . | . . . Relay Couplers Released . | . . . Robots Rewired . | . . . Allies Hacked . | . . . Hacks Repelled . | . . . Allies | -11 -10 -10 -------- Run | Scr Mat Min Total Allies 3 | . . 3 Largest Group 3 | . . 3 Highest-Rated Group 40 | . . 40 Highest-Rated Ally 16 | . . 16 Total Orders . | . . . Ally Attacks 18 | . . 18 Total Damage 173 | . . 173 Kills 3 | . . 3 Allies Corrupted . | . . . Allies Melted . | . . . Intel | -11 -10 -10 ------- Run | Scr Mat Min Robot Analysis Total . | . . . Derelict Logs Recovered 2 | . . 2 Drone Launches . | . . . Drone Recoveries . | . . . Exploration | -11 -10 -10 ------------- Run | Scr Mat Min Turns Passed 1035 | 131 288 616 Spaces Moved 798 | 82 181 535 Core 26 | 23 . 3 Treads . | . . . Legs . | . . . Wheels 772 | 59 181 532 Hover . | . . . Flight . | . . . Fastest Speed 50 | 50 80 90 Average Speed 90 | 80 87 93 Slowest Speed 700 | 150 90 700 Overloaded Moves . | . . . Propulsion Burnouts . | . . . Robots Hopped . | . . . Cave-ins Triggered . | . . . Exploration Rate (%) 46 | 4 36 100 Regions Visited 2 Branch Regions 1 Pre-discovered Areas . | . . . Known Exits Taken . | . . . Unknown Exits Taken 2 | 1 1 . Scrap Searched 1 | . . 1 Spaces Dug . | . . . Terrain Destroyed . | . . . Melee . | . . . Projectile . | . . . AOE . | . . . Actions | -11 -10 -10 --------- Run | Scr Mat Min Total 986 | 125 247 614 Wait 30 | . 1 29 Move 796 | 81 180 535 Hop . | . . . Pick Up 29 | 15 8 6 Fast Attach . | . . . Attach 15 | 6 3 6 Detach . | . . . Swap 4 | . 2 2 Drop 7 | 1 4 2 Fire 105 | 22 49 34 Melee . | . . . Ram . | . . . Kick . | . . . Crush . | . . . Escape Stasis . | . . . Rewire . | . . . Trap . | . . . Miscellaneous . | . . . Route ------- -11/Scrapyard -10/Materials -10/Mines (discovered 2 exits: [*Mat x2]) History --------- Turn | Location | Event 11 | -11/Scrapyard | Discovered new exit (range 16) 132 | -11/Scrapyard | Entered Materials 301 | -10/Materials | Build established: Mutant 410 | -10/Materials | Discovered new exit (range 12) 420 | -10/Materials | Entered Mines 437 | -10/Mines | Core integrity fell below 50% 475 | -10/Mines | Lost 4 parts (1p2n1w) 572 | -10/Mines | Discovered new exit (range 12) 572 | -10/Mines | Discovered new exit (range 9) 594 | -10/Mines | Assisted by bots powering up and referring to "LRC-V3" 665 | -10/Mines | Learned 4 Materials zone layouts 834 | -10/Mines | Core integrity fell below 20% 1036 | -10/Mines | Destroyed by S-10 Pest with Light Assault Rifle Last Messages --------------- 00856_ S-10 Pest destroyed. 00858_ R-06 Scavenger destroyed. 00869_ Acquired Wheel. 00871_ Acquired Lgt. Assault Rifle. 00873_ Acquired 17 matter. 00875_ Acquired Lgt. Assault Rifle. 00876_ Acquired 18 matter. 00877_ Acquired 13 matter. 00879_ Acquired 7 matter. 00882_ Dropped Wheel. 00883_ Acquired 23 matter. 00897_ Acquired Lgt. Ion Engine. 00937_ Acquired derelict log, extracted data. Data stored: Mines entrances (x2). 00964_ K-01 Serf collects debris. 01026_ Assault Rifle destroyed. 01033_ Ion Engine destroyed. 01034_ Mercenary 1a destroyed. 01035_ S-10 Pest destroyed. 01036_ Acquired 11 matter. Map ----- +----------------------------------------------------+ | | | | | | | | | | | | | | | ?????????????????????????????????????????? | | ?????????????????????????????????????????? | | ?????????????????????????????????????????? | | ??????????????????????????????????####???? | | ???????????????????????############ ###?? | | ???????????????????????# ##? | | ???????????????????????# #### #? | | ???????????????????????# #??### #? | | ???????????????????????# #????### #? | | ???????????????????????# #??????## ##? | | ???????????????????????# #???????# ##?? | | ?????????????????????### #??????## ##??? | | ?????????????????????# #??????# ##### | | ???????????####??????# ###??????# | | ???????????# ##????## #????????# | | ???????????# ##??## ####?????## ### | | ????###????# #### #??????## ##?# | | ???## ##?## *%[ #???????####??# | | ???# #?# ==s@ r ##?????????????# | | ??## #?# *#### ###??????????????# | | ??# ### s ##??# ##???????####?????## | | ??# ##???# ########## ##?????? | | ??# #????# ##????? | | ??# ###### #????? | | ??# %% ############ ##?### | | ??# %#??????????## ### | | ??## ## #?#####?????# | | ???### ###%### #?????# | | ?????### ####! ## ###???## ## | | ???????########?# # ##???######## | | ????????????????# #??????????## | | ???############### #???????????## | | ???# ### #????????????# | | ???# """ """ #?## #???????????## | | ???# """ """ ##### < ##?????????### | | ???# """ """ ##?????????## | | ???# # #### ###?????????## | | ???# # #??####??????????## # | | ???# < # #????????????????# # | | ???# # #????????????????# # | | ???############## #????????????????## ## | | ????????????????# #?????????????????#####? | | ????????????????# #??????????????????????? | +----------------------------------------------------+ Best States ------------- Heat Dissipation 25 Energy Generation 10 Energy Capacity 250 Matter Stores 300 Matter Capacity 300 Sight Range 16 Terrain Scan Density 10 Evasion (%) 50 Item Schematics ----------------- None Robot Schematics ------------------ None Fabricated ------------ Nothing Alien Tech Used ----------------- None Achievements -------------- None Challenges ------------ None Game ------ Seed HypercooledBombThrusters Manual? 0 Play Time 00:08:25 Cumulative 229.0 hours Start 2019.12.11 @ 18:53:51 End 2019.12.11 @ 19:02:40 Sessions 1 Manual Loads 0 Difficulty Rogue Special Mode None Game No. 300 Rogue 300 Adventurer 0 Explorer 0 Win Type - Total 2 Types 1/0/0/1/0/0/0 Lore% 58 Gallery% 79 Achievement% 55 Wizard Run 0 Options --------- ASCII 0 Keyboard 0 Movement Numpad Keybinds 0 Fullscreen 1 Font 16/Terminus Map View 75x55 Tactical HUD 1 Map Filters NONE Filters NONE Steam 1 RUN: 0781e18e-3d37-4282-bcfd-b955d95f138c